Workbook

Sheet YHTEENVETO
N1: Laskurin versio: | P1: 1.0 | Q1: 2018-08-14
A2: Kuntiin kohdistuvien kustannusvaikutusten laskentakehikko
A9: Taloudellisten vaikutusten arviointi
B14: Muutoksen kohteena oleva laki ja muutettavat pykälät
D15: Muutettava laki | G15: Laissa muutettavat pykälät
B19: Lainsäädäntömuutoksen pykäläkohtainen kustannusvaikutus
D25: Muutettavan | E25: Onko pykälällä | F25: KÄYTTÖKUSTANNUKSET
D26: pykälän | E26: kustannus- | G26: Palvelujen
D27: numero | E27: vaikutusta? | F27: Henkilöstö | G27: ostot | H27: Aineet | I27: Kiinteistö | J27: ICT | K27: Muut | L27: Yhteensä
D29: 1 | E29: Kyllä | F29: =IF(E29="kyllä", Henkilöstömenot!K38, "-") -> 0 | G29: =IF(E29="kyllä", 'Palvelujen ostot'!J28, "-") -> 0 | H29: =IF(E29="kyllä", 'Aineet, tavarat'!J8, "-") -> 0 | I29: =IF(E29="kyllä", Kiinteistökulut!I13, "-") -> 0 | J29: X | K29: =IF(E29="kyllä",Muut!F3,"-") -> 0 | L29: =SUM(F29:K29) -> 0
D30: 2 | E30: Kyllä | F30: =IF(E30="kyllä", Henkilöstömenot!K39, "-") -> 0 | G30: =IF(E30="kyllä", 'Palvelujen ostot'!J29, "-") -> 0 | H30: =IF(E30="kyllä", 'Aineet, tavarat'!J9, "-") -> 0 | I30: =IF(E30="kyllä", Kiinteistökulut!I14, "-") -> 0 | J30: X | K30: =IF(E30="kyllä",Muut!F4,"-") -> 0 | L30: =SUM(F30:K30) -> 0
D31: 3 | E31: Kyllä | F31: =IF(E31="kyllä", Henkilöstömenot!K40, "-") -> 0 | G31: =IF(E31="kyllä", 'Palvelujen ostot'!J30, "-") -> 0 | H31: =IF(E31="kyllä", 'Aineet, tavarat'!J10, "-") -> 0 | I31: =IF(E31="kyllä", Kiinteistökulut!I15, "-") -> 0 | J31: X | K31: =IF(E31="kyllä",Muut!F5,"-") -> 0 | L31: =SUM(F31:K31) -> 0
F32: =SUM(F28:F31) -> 0 | G32: =SUM(G28:G31) -> 0 | H32: =SUM(H28:H31) -> 0 | I32: =SUM(I28:I31) -> 0 | J32: =ICT_yht -> 0 | K32: =SUM(K28:K31) -> 0 | L32: =SUM(F32:K32) -> 0
B34: Lainsäädäntömuutoksen kustannusvaikutus kustannuslajeittain (käyttökustannukset)
F35: Henkilöstö | H35: =F32 -> 0
F36: Palvelujen ostot | H36: =G32 -> 0
F37: Aineet | H37: =H32 -> 0
F38: Kiinteistöt | H38: =I32 -> 0
F39: ICT | H39: =J32 -> 0
F40: Muut | H40: =K32 -> 0
F41: Yhteensä | H41: =L32 -> 0
B43: Lisäksi lainsäädäntö aiheuttaa kertaluonteisia kustannuksia (investoinnit)
F44: Kiinteistöt | H44: =Kiinteistökulut!N16 -> 0
F45: ICT | H45: ='ICT-kustannukset'!C19 -> 0

Sheet Henkilöstömenot
A2: Henkilöstökustannukset
B15: Henkilöstötarpeen arviointi
B22: Lainsäädännön muutos aiheuttaa muutoksia seuraavissa henkilöstöryhmissä
D27: Valitse ammattinimikkeet alasvetovalikosta | E27: Yksikkökustannus työnantajalle, euroa/htv | G27: Taustaoletukset
D28: Valitse | E28: =VLOOKUP(D28,Ammatit,6,FALSE) -> 0 | G28: Työntantajakulut (%) | I28: 23
D29: Valitse | E29: =VLOOKUP(D29,Ammatit,6,FALSE) -> 0 | G29: Lomaraha (kk) | I29: 0.5
D30: Valitse | E30: =VLOOKUP(D30,Ammatit,6,FALSE) -> 0
D31: Valitse | E31: =VLOOKUP(D31,Ammatit,6,FALSE) -> 0
D32: Valitse | E32: =VLOOKUP(D32,Ammatit,6,FALSE) -> 0
C35: Lainsäädäntömuutoksen pykäläkohtainen vaikutus | F35: Syötä tähän HTV-lisäys | K35: Yhteensä, euroa
D36: Pykälä: | E36: =IF(D28="Valitse","",D28) ->  | F36: =IF(D29="Valitse","",D29) ->  | G36: =IF(D30="Valitse","",D30) ->  | H36: =IF(D31="Valitse","",D31) ->  | I36: =IF(D32="Valitse","",D32) -> 
D38: =YHTEENVETO!D29 -> 1 | K38: =E38*$E$28+F38*$E$29+G38*$E$30+H38*$E$31+I38*$E$32 -> 0
D39: =YHTEENVETO!D30 -> 2 | K39: =E39*$E$28+F39*$E$29+G39*$E$30+H39*$E$31+I39*$E$32 -> 0
D40: =YHTEENVETO!D31 -> 3 | K40: =E40*$E$28+F40*$E$29+G40*$E$30+H40*$E$31+I40*$E$32 -> 0
K41: =SUM(K35:K40) -> 0
D43: HTV-laskelmien tueksi (oletukset) | G43: HTV apulaskuri
D44: Vuodessa päiviä | E44: 365 | H44: per työntekijä | I44: HTV lisäys (per työntekijä)
D45: - joista lauantai- tai sunnuntaipäiviä | E45: 104 | G45: Työtunteja päivässä? | H45: 7.35 | I45: =H45/E50 -> 1
D46: Keskimäärin lomapäiviä | E46: 30 | G46: Työpäiviä vuodessa? | H46: 220 | I46: =H46/E49 -> 1
D47: Keskimäärin arkipyhiä | E47: 9 | G47: Työtuntimäärä vuodessa? | H47: 1617 | I47: =H47/E51 -> 1
D48: Koulutuspäivät | E48: 2
D49: Keskimääräinen työpäivämäärä | E49: =E44-E45-E46-E47-E48 -> 220 | H49: Muutos koko maan tasolla | I49: HTV lisäys (kokonaislisäys)
D50: Työtunteja päivässä | E50: 7.35 | G50: Työntuntien kokonaislisäys? | H50: 16170 | I50: =H50/E51 -> 10
D51: Teoreettinen työtuntimäärä vuodessa | E51: =E50*E49 -> 1617 | G51: Työpäivien kokonaislisäys? | H51: 2200 | I51: =H51/E49 -> 10
C54: Työtilaa oheislaskennalle ja muistiinpanoille

Sheet Palvelujen ostot
A1: Palvelujen ostot
D26: Pykälä | E26: Mitä palveluja ostetaan | F26: Arvio volyymista | G26: Mihin arvio perustuu | H26: Arvio yksikkökustannuksesta | I26: Mihin arvio perustuu | J26: Yhteensä
D28: =YHTEENVETO!D29 -> 1 | J28: =H28*F28 -> 0
D29: =YHTEENVETO!D30 -> 2 | J29: =H29*F29 -> 0
D30: =YHTEENVETO!D31 -> 3 | J30: =H30*F30 -> 0
F31: =SUM(F27:F30) -> 0 | J31: =SUM(J27:J30) -> 0
C33: Työtilaa oheislaskennalle ja muistiinpanoille

Sheet Aineet, tavarat
A2: Aineet, tavarat, tarvikkeet
D6: Pykälä | E6: Mitä aineita, tarvikkeita tms. tarvitaan | F6: Arvio volyymista | G6: Mihin arvio perustuu | H6: Arvio yksikkö-kustannuksesta | I6: Mihin arvio perustuu | J6: Yhteensä
D8: =YHTEENVETO!D29 -> 1 | J8: =H8*F8 -> 0
D9: =YHTEENVETO!D30 -> 2 | J9: =H9*F9 -> 0
D10: =YHTEENVETO!D31 -> 3 | J10: =H10*F10 -> 0
F11: =SUM(F7:F10) -> 0 | J11: =SUM(J7:J10) -> 0
C13: Työtilaa oheislaskennalle ja muistiinpanoille

Sheet Kiinteistökulut
A2: Kiinteistökustannukset
D10: Käyttökustannukset | K10: Investointitarpeet
D11: Pykälä | E11: Mitä tiloja tarvitaan | F11: Arvio volyymista, esim. neliömäärä | G11: Mihin arvio perustuu | H11: Arvio yksikkö-kustannuksesta, esim. neliövuokra / vuosi | I11: Yhteensä | K11: Pykälä | L11: Neliömäärä | M11: Neliökohtaiset rakennus-kustannukset | N11: Yhteensä
D13: =YHTEENVETO!D29 -> 1 | I13: =H13*F13 -> 0 | K13: =YHTEENVETO!D29 -> 1 | N13: =L13*M13 -> 0
D14: =YHTEENVETO!D30 -> 2 | I14: =H14*F14 -> 0 | K14: =YHTEENVETO!D30 -> 2 | N14: =L14*M14 -> 0
D15: =YHTEENVETO!D31 -> 3 | I15: =H15*F15 -> 0 | K15: =YHTEENVETO!D31 -> 3 | N15: =L15*M15 -> 0
F16: =SUM(F12:F15) -> 0 | I16: =SUM(I12:I15) -> 0 | N16: =SUM(N12:N15) -> 0
C17: Sisäisen vuokran neliöhintoja:
D18: Keskiarvo, 17 suurta kaupunkia, tilatyypeittäin:
G19: yhteensä | H19: po-vuokra | I19: ylläpitovuokra | J19: yhteensä
G20: €/m2/kk | H20: €/m2/kk | I20: €/m2/kk | J20: €/m2/vuosi
D21: Toimisto ja hallintotilat | G21: 12.81852 | H21: 7.87644 | I21: 4.94208 | J21: 153.82224
D22: Koulut | G22: 11.78892 | H22: 7.680816 | I22: 4.108104 | J22: 141.46704
D23: Päiväkodit | G23: 13.631904 | H23: 8.453016 | I23: 5.178888 | J23: 163.582848
D24: Terveydenhuollon tilat | G24: 13.837824 | H24: 8.555976 | I24: 5.281848 | J24: 166.053888
D25: Sosiaalitoimen tilat | G25: 12.489048 | H25: 7.742592 | I25: 4.746456 | J25: 149.868576
D26: Kirjasto-, kerho-, nuoriso- ja kulttuuritilat | G26: 11.181456 | H26: 6.89832 | I26: 4.283136 | J26: 134.177472
D27: Liikuntatilat | G27: 10.45044 | H27: 6.754176 | I27: 3.696264 | J27: 125.40528
D28: Keittiö- ja ruokailutilat | G28: 15.917616 | H28: 10.24452 | I28: 5.673096 | J28: 191.011392
D29: Työ-, varasto- ja huoltotilat | G29: 8.113248 | H29: 4.73616 | I29: 3.377088 | J29: 97.358976
D30: Asuinrakennukset | G30: 11.263824 | H30: 6.58944 | I30: 4.674384 | J30: 135.165888
D31: Muut tilat | G31: 10.831392 | H31: 7.536672 | I31: 3.29472 | J31: 129.976704
D32: Keskimääräinen sisäinen vuokra | G32: 10.5534
D33: Lähde: Trellum, tilaraportti
C36: Työtilaa oheislaskennalle ja muistiinpanoille

Sheet ICT-kustannukset
A2: ICT-kustannukset
A14: Investointityyppiset kustannukset
B15: ICT-laite- ja ohjelmistohankinnat
B16: - johon liittyvät henkilöstömenot*
B17: Uutta järjestelmää käyttävien henkilöiden liittyvä koulutus*
B18: Vanhan ohjelmiston/järjestelmän alasajon kustannukset**
C19: =SUM(C15:C18) -> 0
A21: Käytön aikaiset kustannukset
B22: Kuntahenkilöstön ajankäyttö*
B23: Lisenssit ym maksut***
B24: ICT-toimittajien käytön aikainen tarve (esim. päivitykset)***
B25: ATK-ohjelmien poistot (yleisohje: 2-5 vuotta) | C25: =C19/5 -> 0
B26: Muu, mikä?
C27: =SUM(C22:C26) -> 0
A29: Työtilaa oheislaskennalle ja muistiinpanoille

Sheet Muut
A1: Muut kustannukset
B2: Pykälä | C2: Mitä muita kustannuksia muutos aiheuttaa | D2: Volyymi | E2: Yksikkökustannus
B3: =YHTEENVETO!D29 -> 1 | F3: =D3*E3 -> 0
B4: =YHTEENVETO!D30 -> 2 | F4: =D4*E4 -> 0
B5: =YHTEENVETO!D31 -> 3 | F5: =D5*E5 -> 0
F6: =SUM(F2:F5) -> 0
B8: Työtilaa oheislaskennalle ja muistiinpanoille

Sheet Ammatit ja palkat
B1: Kokoaikaisten lukumäärä | C1: Osa-aikaisten lukumäärä | D1: Säännöllisen työajan ansion keskiarvo, e/kk | E1: Kokonaisansion keskiarvo, e/kk | F1: Työnantaja-kustannus (sivukulut huomioiden)
A2: syötä ammattinimike | D2: syötä ansio | F2: =IF(D2="syötä ansio","",E2*(12+Henkilöstömenot!$I$29)*(1+(Henkilöstömenot!$I$28/100))) -> 
A3: syötä ammattinimike | D3: syötä ansio | F3: =IF(D3="syötä ansio","",E3*(12+Henkilöstömenot!$I$29)*(1+(Henkilöstömenot!$I$28/100))) -> 
A4: syötä ammattinimike | D4: syötä ansio | F4: =IF(D4="syötä ansio","",E4*(12+Henkilöstömenot!$I$29)*(1+(Henkilöstömenot!$I$28/100))) -> 
A5: syötä ammattinimike | D5: syötä ansio | F5: =IF(D5="syötä ansio","",E5*(12+Henkilöstömenot!$I$29)*(1+(Henkilöstömenot!$I$28/100))) -> 
A6: syötä ammattinimike | D6: syötä ansio | F6: =IF(D6="syötä ansio","",E6*(12+Henkilöstömenot!$I$29)*(1+(Henkilöstömenot!$I$28/100))) -> 
A7: Valitse
A8: Ammatit yhteensä | B8: 355747 | C8: 54735 | D8: 3049 | E8: 3139 | F8: =D8*(12+Henkilöstömenot!$I$29)*(1+(Henkilöstömenot!$I$28/100)) -> 46878.375
A9: Aamu- ja iltapäiväkerhon ohjaaja | B9: 17 | C9: 51 | D9: 2115 | E9: 2115 | F9: =D9*(12+Henkilöstömenot!$I$29)*(1+(Henkilöstömenot!$I$28/100)) -> 32518.125
A10: Aamu- ja iltapäivätoiminnan ohjaaja | B10: 48 | C10: 32 | D10: 2065 | E10: 2071 | F10: =D10*(12+Henkilöstömenot!$I$29)*(1+(Henkilöstömenot!$I$28/100)) -> 31749.375
A11: Aikuiskoulutuskeskuksenopettaja | B11: 324 | C11: 102 | D11: 4091 | E11: 4091 | F11: =D11*(12+Henkilöstömenot!$I$29)*(1+(Henkilöstömenot!$I$28/100)) -> 62899.125
A12: Aikuiskoulutusopettaja | B12: 198 | C12: 49 | D12: 4125 | E12: 4125 | F12: =D12*(12+Henkilöstömenot!$I$29)*(1+(Henkilöstömenot!$I$28/100)) -> 63421.875
A13: Aikuiskoulutuspäällikkö | B13: 21 | C13: - | D13: 4624 | E13: 4624 | F13: =D13*(12+Henkilöstömenot!$I$29)*(1+(Henkilöstömenot!$I$28/100)) -> 71094
A14: Aikuislukion lehtori | B14: 17 | C14: 4 | D14: 4391 | E14: 4635 | F14: =D14*(12+Henkilöstömenot!$I$29)*(1+(Henkilöstömenot!$I$28/100)) -> 67511.625
A15: Aineenopettaja | B15: 32 | C15: - | D15: 3375 | E15: 3505 | F15: =D15*(12+Henkilöstömenot!$I$29)*(1+(Henkilöstömenot!$I$28/100)) -> 51890.625
A16: Aineopettaja | B16: 16 | C16: 1 | D16: 3402 | E16: 3438 | F16: =D16*(12+Henkilöstömenot!$I$29)*(1+(Henkilöstömenot!$I$28/100)) -> 52305.75
A17: Ajojärjestelijä | B17: 16 | C17: - | D17: 2880 | E17: 3088 | F17: =D17*(12+Henkilöstömenot!$I$29)*(1+(Henkilöstömenot!$I$28/100)) -> 44280
A18: Ala-asteen koulun rehtori | B18: 28 | C18: - | D18: 5086 | E18: 5086 | F18: =D18*(12+Henkilöstömenot!$I$29)*(1+(Henkilöstömenot!$I$28/100)) -> 78197.25
A19: Alue-esimies | B19: 51 | C19: 1 | D19: 3159 | E19: 3208 | F19: =D19*(12+Henkilöstömenot!$I$29)*(1+(Henkilöstömenot!$I$28/100)) -> 48569.625
A20: Aluearkkitehti | B20: 15 | C20: 3 | D20: 4427 | E20: 4427 | F20: =D20*(12+Henkilöstömenot!$I$29)*(1+(Henkilöstömenot!$I$28/100)) -> 68065.125
A21: Alueinsinööri | B21: 12 | C21: 2 | D21: 3911 | E21: 3911 | F21: =D21*(12+Henkilöstömenot!$I$29)*(1+(Henkilöstömenot!$I$28/100)) -> 60131.625
A22: Aluekehitysasiantuntija | B22: 18 | C22: 2 | D22: 4052 | E22: 4052 | F22: =D22*(12+Henkilöstömenot!$I$29)*(1+(Henkilöstömenot!$I$28/100)) -> 62299.5
A23: Aluekoordinaattori | B23: 29 | C23: 3 | D23: 3328 | E23: 3328 | F23: =D23*(12+Henkilöstömenot!$I$29)*(1+(Henkilöstömenot!$I$28/100)) -> 51168
A24: Aluepalopäällikkö | B24: 11 | C24: - | D24: 4808 | E24: 5116 | F24: =D24*(12+Henkilöstömenot!$I$29)*(1+(Henkilöstömenot!$I$28/100)) -> 73923
A25: Aluepäällikkö | B25: 47 | C25: 1 | D25: 4295 | E25: 4525 | F25: =D25*(12+Henkilöstömenot!$I$29)*(1+(Henkilöstömenot!$I$28/100)) -> 66035.625
A26: Aluevastaava | B26: 15 | C26: 1 | D26: 3596 | E26: 3596 | F26: =D26*(12+Henkilöstömenot!$I$29)*(1+(Henkilöstömenot!$I$28/100)) -> 55288.5
A27: Amanuenssi | B27: 244 | C27: 35 | D27: 2415 | E27: 2415 | F27: =D27*(12+Henkilöstömenot!$I$29)*(1+(Henkilöstömenot!$I$28/100)) -> 37130.625
A28: Ammatillinen ohjaaja | B28: 83 | C28: 5 | D28: 2317 | E28: 2317 | F28: =D28*(12+Henkilöstömenot!$I$29)*(1+(Henkilöstömenot!$I$28/100)) -> 35623.875
A29: Ammatinohjaaja | B29: 35 | C29: 7 | D29: 2873 | E29: 2874 | F29: =D29*(12+Henkilöstömenot!$I$29)*(1+(Henkilöstömenot!$I$28/100)) -> 44172.375
A30: Ammattimies | B30: 466 | C30: 42 | D30: 2409 | E30: 2606 | F30: =D30*(12+Henkilöstömenot!$I$29)*(1+(Henkilöstömenot!$I$28/100)) -> 37038.375
A31: Ammattiohjaaja | B31: 12 | C31: - | D31: 2239 | E31: 2272 | F31: =D31*(12+Henkilöstömenot!$I$29)*(1+(Henkilöstömenot!$I$28/100)) -> 34424.625
A32: Apteekkari | B32: 14 | C32: 1 | D32: 5929 | E32: 5950 | F32: =D32*(12+Henkilöstömenot!$I$29)*(1+(Henkilöstömenot!$I$28/100)) -> 91158.375
A33: Apuhoitaja | B33: 17 | C33: 11 | D33: 2766 | E33: 2774 | F33: =D33*(12+Henkilöstömenot!$I$29)*(1+(Henkilöstömenot!$I$28/100)) -> 42527.25
A34: Apulainen | B34: 10 | C34: 9 | D34: 1695 | E34: 1695 | F34: =D34*(12+Henkilöstömenot!$I$29)*(1+(Henkilöstömenot!$I$28/100)) -> 26060.625
A35: Apulaiskaupunginjohtaja | B35: 11 | C35: - | D35: 10561 | E35: 10561 | F35: =D35*(12+Henkilöstömenot!$I$29)*(1+(Henkilöstömenot!$I$28/100)) -> 162375.375
A36: Apulaisosastonhoitaja | B36: 1046 | C36: 90 | D36: 3260 | E36: 3383 | F36: =D36*(12+Henkilöstömenot!$I$29)*(1+(Henkilöstömenot!$I$28/100)) -> 50122.5
A37: Apulaisosastonhoitaja, sairaalassa | B37: 262 | C37: 29 | D37: 3147 | E37: 3238 | F37: =D37*(12+Henkilöstömenot!$I$29)*(1+(Henkilöstömenot!$I$28/100)) -> 48385.125
A38: Apulaispalopäällikkö | B38: 15 | C38: - | D38: 3627 | E38: 4027 | F38: =D38*(12+Henkilöstömenot!$I$29)*(1+(Henkilöstömenot!$I$28/100)) -> 55765.125
A39: Apulaisrehtori | B39: 253 | C39: 3 | D39: 5093 | E39: 5105 | F39: =D39*(12+Henkilöstömenot!$I$29)*(1+(Henkilöstömenot!$I$28/100)) -> 78304.875
A40: Apulaisylihammaslääkäri | B40: 21 | C40: 7 | D40: 7375 | E40: 7600 | F40: =D40*(12+Henkilöstömenot!$I$29)*(1+(Henkilöstömenot!$I$28/100)) -> 113390.625
A41: Apulaisylilääkäri | B41: 564 | C41: 140 | D41: 6993 | E41: 8859 | F41: =D41*(12+Henkilöstömenot!$I$29)*(1+(Henkilöstömenot!$I$28/100)) -> 107517.375
A42: Apuohjaaja | B42: 71 | C42: 29 | D42: 1854 | E42: 1863 | F42: =D42*(12+Henkilöstömenot!$I$29)*(1+(Henkilöstömenot!$I$28/100)) -> 28505.25
A43: Aputyöntekijä | B43: 17 | C43: 77 | D43: 1740 | E43: 1740 | F43: =D43*(12+Henkilöstömenot!$I$29)*(1+(Henkilöstömenot!$I$28/100)) -> 26752.5
A44: Apuvälinemekaanikko | B44: 21 | C44: 1 | D44: 2266 | E44: 2266 | F44: =D44*(12+Henkilöstömenot!$I$29)*(1+(Henkilöstömenot!$I$28/100)) -> 34839.75
A45: Arkistoapulainen | B45: 14 | C45: 12 | D45: 1865 | E45: 1865 | F45: =D45*(12+Henkilöstömenot!$I$29)*(1+(Henkilöstömenot!$I$28/100)) -> 28674.375
A46: Arkistonhoitaja | B46: 74 | C46: 12 | D46: 2425 | E46: 2432 | F46: =D46*(12+Henkilöstömenot!$I$29)*(1+(Henkilöstömenot!$I$28/100)) -> 37284.375
A47: Arkistonsihteeri | B47: 19 | C47: 7 | D47: 2427 | E47: 2427 | F47: =D47*(12+Henkilöstömenot!$I$29)*(1+(Henkilöstömenot!$I$28/100)) -> 37315.125
A48: Arkistopäällikkö | B48: 15 | C48: 1 | D48: 3702 | E48: 3702 | F48: =D48*(12+Henkilöstömenot!$I$29)*(1+(Henkilöstömenot!$I$28/100)) -> 56918.25
A49: Arkistosihteeri | B49: 105 | C49: 10 | D49: 2453 | E49: 2453 | F49: =D49*(12+Henkilöstömenot!$I$29)*(1+(Henkilöstömenot!$I$28/100)) -> 37714.875
A50: Arkistotyöntekijä | B50: 17 | C50: 3 | D50: 2020 | E50: 2020 | F50: =D50*(12+Henkilöstömenot!$I$29)*(1+(Henkilöstömenot!$I$28/100)) -> 31057.5
A51: Arkkitehti | B51: 103 | C51: 9 | D51: 4116 | E51: 4129 | F51: =D51*(12+Henkilöstömenot!$I$29)*(1+(Henkilöstömenot!$I$28/100)) -> 63283.5
A52: Asemakaava-arkkitehti | B52: 13 | C52: 1 | D52: 4578 | E52: 4578 | F52: =D52*(12+Henkilöstömenot!$I$29)*(1+(Henkilöstömenot!$I$28/100)) -> 70386.75
A53: Asemakaavasuunnittelija | B53: 18 | C53: 1 | D53: 4017 | E53: 4017 | F53: =D53*(12+Henkilöstömenot!$I$29)*(1+(Henkilöstömenot!$I$28/100)) -> 61761.375
A54: Asemamestari | B54: 35 | C54: 1 | D54: 3396 | E54: 3867 | F54: =D54*(12+Henkilöstömenot!$I$29)*(1+(Henkilöstömenot!$I$28/100)) -> 52213.5
A55: Asentaja | B55: 61 | C55: 6 | D55: 2532 | E55: 2895 | F55: =D55*(12+Henkilöstömenot!$I$29)*(1+(Henkilöstömenot!$I$28/100)) -> 38929.5
A56: Asiakasmaksusihteeri | B56: 81 | C56: 4 | D56: 2419 | E56: 2441 | F56: =D56*(12+Henkilöstömenot!$I$29)*(1+(Henkilöstömenot!$I$28/100)) -> 37192.125
A57: Asiakasneuvoja | B57: 118 | C57: 19 | D57: 2404 | E57: 2409 | F57: =D57*(12+Henkilöstömenot!$I$29)*(1+(Henkilöstömenot!$I$28/100)) -> 36961.5
A58: Asiakasohjaaja | B58: 89 | C58: 3 | D58: 2754 | E58: 2754 | F58: =D58*(12+Henkilöstömenot!$I$29)*(1+(Henkilöstömenot!$I$28/100)) -> 42342.75
A59: Asiakaspalvelija | B59: 83 | C59: 4 | D59: 2347 | E59: 2389 | F59: =D59*(12+Henkilöstömenot!$I$29)*(1+(Henkilöstömenot!$I$28/100)) -> 36085.125
A60: Asiakaspalvelupäällikkö | B60: 30 | C60: 2 | D60: 3903 | E60: 3903 | F60: =D60*(12+Henkilöstömenot!$I$29)*(1+(Henkilöstömenot!$I$28/100)) -> 60008.625
A61: Asiakaspalvelusihteeri | B61: 128 | C61: 17 | D61: 2349 | E61: 2349 | F61: =D61*(12+Henkilöstömenot!$I$29)*(1+(Henkilöstömenot!$I$28/100)) -> 36115.875
A62: Asiakaspalveluvastaava | B62: 19 | C62: - | D62: 2844 | E62: 2864 | F62: =D62*(12+Henkilöstömenot!$I$29)*(1+(Henkilöstömenot!$I$28/100)) -> 43726.5
A63: Asiakaspäällikkö | B63: 20 | C63: - | D63: 4415 | E63: 4415 | F63: =D63*(12+Henkilöstömenot!$I$29)*(1+(Henkilöstömenot!$I$28/100)) -> 67880.625
A64: Asiakassihteeri | B64: 42 | C64: 11 | D64: 2539 | E64: 2539 | F64: =D64*(12+Henkilöstömenot!$I$29)*(1+(Henkilöstömenot!$I$28/100)) -> 39037.125
A65: Asiakasvastaava | B65: 40 | C65: 1 | D65: 3531 | E65: 3668 | F65: =D65*(12+Henkilöstömenot!$I$29)*(1+(Henkilöstömenot!$I$28/100)) -> 54289.125
A66: Asiakirjahallinnon asiantuntija | B66: 12 | C66: 1 | D66: 2878 | E66: 2878 | F66: =D66*(12+Henkilöstömenot!$I$29)*(1+(Henkilöstömenot!$I$28/100)) -> 44249.25
A67: Asiakirjahallinnon suunnittelija | B67: 22 | C67: - | D67: 3248 | E67: 3248 | F67: =D67*(12+Henkilöstömenot!$I$29)*(1+(Henkilöstömenot!$I$28/100)) -> 49938
A68: Asiakkuuspäällikkö | B68: 58 | C68: - | D68: 4647 | E68: 4647 | F68: =D68*(12+Henkilöstömenot!$I$29)*(1+(Henkilöstömenot!$I$28/100)) -> 71447.625
A69: Asianhallintapäällikkö | B69: 12 | C69: - | D69: 3603 | E69: 3603 | F69: =D69*(12+Henkilöstömenot!$I$29)*(1+(Henkilöstömenot!$I$28/100)) -> 55396.125
A70: Asianhallintasihteeri | B70: 58 | C70: 6 | D70: 2728 | E70: 2728 | F70: =D70*(12+Henkilöstömenot!$I$29)*(1+(Henkilöstömenot!$I$28/100)) -> 41943
A71: Asiantuntija | B71: 168 | C71: 32 | D71: 3710 | E71: 3710 | F71: =D71*(12+Henkilöstömenot!$I$29)*(1+(Henkilöstömenot!$I$28/100)) -> 57041.25
A72: Asiantuntijahoitaja | B72: 75 | C72: 14 | D72: 3192 | E72: 3212 | F72: =D72*(12+Henkilöstömenot!$I$29)*(1+(Henkilöstömenot!$I$28/100)) -> 49077
A73: Asiantuntijasairaanhoitaja | B73: 44 | C73: 5 | D73: 2943 | E73: 2965 | F73: =D73*(12+Henkilöstömenot!$I$29)*(1+(Henkilöstömenot!$I$28/100)) -> 45248.625
A74: Askartelunohjaaja | B74: 66 | C74: 16 | D74: 2371 | E74: 2384 | F74: =D74*(12+Henkilöstömenot!$I$29)*(1+(Henkilöstömenot!$I$28/100)) -> 36454.125
A75: Assistentti | B75: 126 | C75: 49 | D75: 2475 | E75: 2484 | F75: =D75*(12+Henkilöstömenot!$I$29)*(1+(Henkilöstömenot!$I$28/100)) -> 38053.125
A76: Asumisen ohjaaja | B76: 192 | C76: 22 | D76: 2947 | E76: 2996 | F76: =D76*(12+Henkilöstömenot!$I$29)*(1+(Henkilöstömenot!$I$28/100)) -> 45310.125
A77: Asumisneuvoja | B77: 19 | C77: 1 | D77: 2784 | E77: 2784 | F77: =D77*(12+Henkilöstömenot!$I$29)*(1+(Henkilöstömenot!$I$28/100)) -> 42804
A78: Asumisohjaaja | B78: 90 | C78: 14 | D78: 2604 | E78: 2646 | F78: =D78*(12+Henkilöstömenot!$I$29)*(1+(Henkilöstömenot!$I$28/100)) -> 40036.5
A79: Asumispalveluesimies | B79: 14 | C79: - | D79: 3222 | E79: 3227 | F79: =D79*(12+Henkilöstömenot!$I$29)*(1+(Henkilöstömenot!$I$28/100)) -> 49538.25
A80: Asumispalvelujen ohjaaja | B80: 28 | C80: 4 | D80: 2926 | E80: 2939 | F80: =D80*(12+Henkilöstömenot!$I$29)*(1+(Henkilöstömenot!$I$28/100)) -> 44987.25
A81: Asumispalvelujen päällikkö | B81: 11 | C81: 1 | D81: 3955 | E81: 3955 | F81: =D81*(12+Henkilöstömenot!$I$29)*(1+(Henkilöstömenot!$I$28/100)) -> 60808.125
A82: Asumisyksikön esimies | B82: 26 | C82: 3 | D82: 3336 | E82: 3348 | F82: =D82*(12+Henkilöstömenot!$I$29)*(1+(Henkilöstömenot!$I$28/100)) -> 51291
A83: Asuntolanohjaaja | B83: 19 | C83: 2 | D83: 2459 | E83: 2461 | F83: =D83*(12+Henkilöstömenot!$I$29)*(1+(Henkilöstömenot!$I$28/100)) -> 37807.125
A84: Asuntolaohjaaja | B84: 34 | C84: 6 | D84: 2484 | E84: 2490 | F84: =D84*(12+Henkilöstömenot!$I$29)*(1+(Henkilöstömenot!$I$28/100)) -> 38191.5
A85: Asuntosihteeri | B85: 66 | C85: 6 | D85: 2683 | E85: 2683 | F85: =D85*(12+Henkilöstömenot!$I$29)*(1+(Henkilöstömenot!$I$28/100)) -> 41251.125
A86: Atk-asiantuntija | B86: 20 | C86: 1 | D86: 3445 | E86: 3445 | F86: =D86*(12+Henkilöstömenot!$I$29)*(1+(Henkilöstömenot!$I$28/100)) -> 52966.875
A87: Atk-suunnittelija | B87: 78 | C87: 8 | D87: 3181 | E87: 3234 | F87: =D87*(12+Henkilöstömenot!$I$29)*(1+(Henkilöstömenot!$I$28/100)) -> 48907.875
A88: Atk-tukihenkilö | B88: 165 | C88: 20 | D88: 2493 | E88: 2504 | F88: =D88*(12+Henkilöstömenot!$I$29)*(1+(Henkilöstömenot!$I$28/100)) -> 38329.875
A89: Atk-vastaava | B89: 13 | C89: 1 | D89: 2756 | E89: 2756 | F89: =D89*(12+Henkilöstömenot!$I$29)*(1+(Henkilöstömenot!$I$28/100)) -> 42373.5
A90: Audionomi | B90: 101 | C90: 18 | D90: 2714 | E90: 2842 | F90: =D90*(12+Henkilöstömenot!$I$29)*(1+(Henkilöstömenot!$I$28/100)) -> 41727.75
A91: Automaatioasentaja | B91: 16 | C91: - | D91: 2577 | E91: 2873 | F91: =D91*(12+Henkilöstömenot!$I$29)*(1+(Henkilöstömenot!$I$28/100)) -> 39621.375
A92: Automaatioinsinööri | B92: 12 | C92: - | D92: 3468 | E92: 3546 | F92: =D92*(12+Henkilöstömenot!$I$29)*(1+(Henkilöstömenot!$I$28/100)) -> 53320.5
A93: Autonasentaja | B93: 17 | C93: 3 | D93: 2296 | E93: 2296 | F93: =D93*(12+Henkilöstömenot!$I$29)*(1+(Henkilöstömenot!$I$28/100)) -> 35301
A94: Autonkuljettaja | B94: 138 | C94: 22 | D94: 2201 | E94: 2242 | F94: =D94*(12+Henkilöstömenot!$I$29)*(1+(Henkilöstömenot!$I$28/100)) -> 33840.375
A95: Avopalveluohjaaja | B95: 23 | C95: 2 | D95: 2875 | E95: 2892 | F95: =D95*(12+Henkilöstömenot!$I$29)*(1+(Henkilöstömenot!$I$28/100)) -> 44203.125
A96: Avustaja | B96: 547 | C96: 138 | D96: 1997 | E96: 1999 | F96: =D96*(12+Henkilöstömenot!$I$29)*(1+(Henkilöstömenot!$I$28/100)) -> 30703.875
A97: Avustaja päivähoidossa | B97: 25 | C97: 5 | D97: 1943 | E97: 1955 | F97: =D97*(12+Henkilöstömenot!$I$29)*(1+(Henkilöstömenot!$I$28/100)) -> 29873.625
A98: Avustava ohjaaja | B98: 43 | C98: 23 | D98: 1956 | E98: 1969 | F98: =D98*(12+Henkilöstömenot!$I$29)*(1+(Henkilöstömenot!$I$28/100)) -> 30073.5
A99: Bioanalyytikko | B99: 20 | C99: 3 | D99: 2659 | E99: 2770 | F99: =D99*(12+Henkilöstömenot!$I$29)*(1+(Henkilöstömenot!$I$28/100)) -> 40882.125
A100: Biologian ja maantieteen lehtori | B100: 62 | C100: 2 | D100: 3873 | E100: 3971 | F100: =D100*(12+Henkilöstömenot!$I$29)*(1+(Henkilöstömenot!$I$28/100)) -> 59547.375
A101: Controller | B101: 135 | C101: 3 | D101: 4084 | E101: 4096 | F101: =D101*(12+Henkilöstömenot!$I$29)*(1+(Henkilöstömenot!$I$28/100)) -> 62791.5
A102: Diabeteshoitaja | B102: 21 | C102: 8 | D102: 2791 | E102: 2793 | F102: =D102*(12+Henkilöstömenot!$I$29)*(1+(Henkilöstömenot!$I$28/100)) -> 42911.625
A103: Dieettikokki | B103: 51 | C103: 5 | D103: 2314 | E103: 2315 | F103: =D103*(12+Henkilöstömenot!$I$29)*(1+(Henkilöstömenot!$I$28/100)) -> 35577.75
A104: Elektroniikka-asentaja | B104: 12 | C104: - | D104: 2480 | E104: 2518 | F104: =D104*(12+Henkilöstömenot!$I$29)*(1+(Henkilöstömenot!$I$28/100)) -> 38130
A105: Elinkeinoasiamies | B105: 19 | C105: 1 | D105: 4022 | E105: 4022 | F105: =D105*(12+Henkilöstömenot!$I$29)*(1+(Henkilöstömenot!$I$28/100)) -> 61838.25
A106: Elinkeinojohtaja | B106: 24 | C106: - | D106: 5953 | E106: 6094 | F106: =D106*(12+Henkilöstömenot!$I$29)*(1+(Henkilöstömenot!$I$28/100)) -> 91527.375
A107: Elinkeinopäällikkö | B107: 14 | C107: - | D107: 4710 | E107: 4710 | F107: =D107*(12+Henkilöstömenot!$I$29)*(1+(Henkilöstömenot!$I$28/100)) -> 72416.25
A108: Elintarviketarkastaja | B108: 33 | C108: 3 | D108: 3358 | E108: 3358 | F108: =D108*(12+Henkilöstömenot!$I$29)*(1+(Henkilöstömenot!$I$28/100)) -> 51629.25
A109: Elinvoimajohtaja | B109: 12 | C109: - | D109: 6141 | E109: 6141 | F109: =D109*(12+Henkilöstömenot!$I$29)*(1+(Henkilöstömenot!$I$28/100)) -> 94417.875
A110: Eläinlääkäri | B110: 67 | C110: 44 | D110: 2938 | E110: 3373 | F110: =D110*(12+Henkilöstömenot!$I$29)*(1+(Henkilöstömenot!$I$28/100)) -> 45171.75
A111: Eläintenhoitaja | B111: 51 | C111: 12 | D111: 2402 | E111: 2412 | F111: =D111*(12+Henkilöstömenot!$I$29)*(1+(Henkilöstömenot!$I$28/100)) -> 36930.75
A112: Emäntä | B112: 90 | C112: 10 | D112: 2396 | E112: 2410 | F112: =D112*(12+Henkilöstömenot!$I$29)*(1+(Henkilöstömenot!$I$28/100)) -> 36838.5
A113: Energia-asiantuntija | B113: 11 | C113: 4 | D113: 3421 | E113: 3421 | F113: =D113*(12+Henkilöstömenot!$I$29)*(1+(Henkilöstömenot!$I$28/100)) -> 52597.875
A114: Englannin- ja ruotsinkielen lehtori | B114: 104 | C114: 2 | D114: 3677 | E114: 3852 | F114: =D114*(12+Henkilöstömenot!$I$29)*(1+(Henkilöstömenot!$I$28/100)) -> 56533.875
A115: Englanninkielen lehtori | B115: 118 | C115: 3 | D115: 3890 | E115: 4008 | F115: =D115*(12+Henkilöstömenot!$I$29)*(1+(Henkilöstömenot!$I$28/100)) -> 59808.75
A116: Ensihoidon kenttäjohtaja | B116: 24 | C116: - | D116: 3973 | E116: 4141 | F116: =D116*(12+Henkilöstömenot!$I$29)*(1+(Henkilöstömenot!$I$28/100)) -> 61084.875
A117: Ensihoitaja | B117: 1233 | C117: 38 | D117: 3410 | E117: 3512 | F117: =D117*(12+Henkilöstömenot!$I$29)*(1+(Henkilöstömenot!$I$28/100)) -> 52428.75
A118: Ensihoitaja, hoitotaso | B118: 287 | C118: 10 | D118: 3459 | E118: 3665 | F118: =D118*(12+Henkilöstömenot!$I$29)*(1+(Henkilöstömenot!$I$28/100)) -> 53182.125
A119: Ensihoitaja, perustaso | B119: 311 | C119: - | D119: 3000 | E119: 3185 | F119: =D119*(12+Henkilöstömenot!$I$29)*(1+(Henkilöstömenot!$I$28/100)) -> 46125
A120: Ensihoitoesimies | B120: 54 | C120: - | D120: 3840 | E120: 4053 | F120: =D120*(12+Henkilöstömenot!$I$29)*(1+(Henkilöstömenot!$I$28/100)) -> 59040
A121: Ensihoitomestari | B121: 16 | C121: 1 | D121: 3875 | E121: 4035 | F121: =D121*(12+Henkilöstömenot!$I$29)*(1+(Henkilöstömenot!$I$28/100)) -> 59578.125
A122: Ensihoitopäällikkö | B122: 24 | C122: - | D122: 4459 | E122: 4581 | F122: =D122*(12+Henkilöstömenot!$I$29)*(1+(Henkilöstömenot!$I$28/100)) -> 68557.125
A123: Ensiviulun soittaja | B123: 27 | C123: - | D123: 3113 | E123: 3113 | F123: =D123*(12+Henkilöstömenot!$I$29)*(1+(Henkilöstömenot!$I$28/100)) -> 47862.375
A124: Erikoisammattimies | B124: 344 | C124: 15 | D124: 2462 | E124: 2655 | F124: =D124*(12+Henkilöstömenot!$I$29)*(1+(Henkilöstömenot!$I$28/100)) -> 37853.25
A125: Erikoishammaslääkäri | B125: 69 | C125: 133 | D125: 6962 | E125: 7205 | F125: =D125*(12+Henkilöstömenot!$I$29)*(1+(Henkilöstömenot!$I$28/100)) -> 107040.75
A126: Erikoiskirjastonhoitaja | B126: 81 | C126: 5 | D126: 2885 | E126: 2885 | F126: =D126*(12+Henkilöstömenot!$I$29)*(1+(Henkilöstömenot!$I$28/100)) -> 44356.875
A127: Erikoiskirjastovirkailija | B127: 159 | C127: 20 | D127: 2549 | E127: 2550 | F127: =D127*(12+Henkilöstömenot!$I$29)*(1+(Henkilöstömenot!$I$28/100)) -> 39190.875
A128: Erikoislääkäri | B128: 2117 | C128: 793 | D128: 6116 | E128: 8470 | F128: =D128*(12+Henkilöstömenot!$I$29)*(1+(Henkilöstömenot!$I$28/100)) -> 94033.5
A129: Erikoisopettaja | B129: 20 | C129: 1 | D129: 3542 | E129: 3580 | F129: =D129*(12+Henkilöstömenot!$I$29)*(1+(Henkilöstömenot!$I$28/100)) -> 54458.25
A130: Erikoissairaanhoitaja | B130: 135 | C130: 20 | D130: 2916 | E130: 2938 | F130: =D130*(12+Henkilöstömenot!$I$29)*(1+(Henkilöstömenot!$I$28/100)) -> 44833.5
A131: Erikoissuunnittelija | B131: 101 | C131: 8 | D131: 3815 | E131: 3828 | F131: =D131*(12+Henkilöstömenot!$I$29)*(1+(Henkilöstömenot!$I$28/100)) -> 58655.625
A132: Erikoistutkija | B132: 19 | C132: 4 | D132: 3664 | E132: 3689 | F132: =D132*(12+Henkilöstömenot!$I$29)*(1+(Henkilöstömenot!$I$28/100)) -> 56334
A133: Erikoistuva fyysikko | B133: 24 | C133: 5 | D133: 3570 | E133: 3581 | F133: =D133*(12+Henkilöstömenot!$I$29)*(1+(Henkilöstömenot!$I$28/100)) -> 54888.75
A134: Erikoistuva hammaslääkäri | B134: 47 | C134: 18 | D134: 4289 | E134: 4734 | F134: =D134*(12+Henkilöstömenot!$I$29)*(1+(Henkilöstömenot!$I$28/100)) -> 65943.375
A135: Erikoistuva lääkäri | B135: 2497 | C135: 187 | D135: 4038 | E135: 5967 | F135: =D135*(12+Henkilöstömenot!$I$29)*(1+(Henkilöstömenot!$I$28/100)) -> 62084.25
A136: Erityisasiantuntija | B136: 128 | C136: 12 | D136: 4082 | E136: 4084 | F136: =D136*(12+Henkilöstömenot!$I$29)*(1+(Henkilöstömenot!$I$28/100)) -> 62760.75
A137: Erityisavustaja | B137: 793 | C137: 98 | D137: 1990 | E137: 1991 | F137: =D137*(12+Henkilöstömenot!$I$29)*(1+(Henkilöstömenot!$I$28/100)) -> 30596.25
A138: Erityiskoulun rehtori | B138: 27 | C138: - | D138: 5335 | E138: 5335 | F138: =D138*(12+Henkilöstömenot!$I$29)*(1+(Henkilöstömenot!$I$28/100)) -> 82025.625
A139: Erityislastentarhan opettaja | B139: 626 | C139: 49 | D139: 2874 | E139: 2876 | F139: =D139*(12+Henkilöstömenot!$I$29)*(1+(Henkilöstömenot!$I$28/100)) -> 44187.75
A140: Erityislastentarhanopettaja | B140: 11 | C140: - | D140: 2842 | E140: 2842 | F140: =D140*(12+Henkilöstömenot!$I$29)*(1+(Henkilöstömenot!$I$28/100)) -> 43695.75
A141: Erityisliikunnanohjaaja | B141: 31 | C141: 5 | D141: 2364 | E141: 2364 | F141: =D141*(12+Henkilöstömenot!$I$29)*(1+(Henkilöstömenot!$I$28/100)) -> 36346.5
A142: Erityisluokanopett., harjaantumisopetus | B142: 61 | C142: 2 | D142: 3822 | E142: 3885 | F142: =D142*(12+Henkilöstömenot!$I$29)*(1+(Henkilöstömenot!$I$28/100)) -> 58763.25
A143: Erityisluokanopett., mukautettu opetus | B143: 112 | C143: - | D143: 3932 | E143: 3977 | F143: =D143*(12+Henkilöstömenot!$I$29)*(1+(Henkilöstömenot!$I$28/100)) -> 60454.5
A144: Erityisluokanopett., sopeutumatt. opetus | B144: 17 | C144: - | D144: 4196 | E144: 4196 | F144: =D144*(12+Henkilöstömenot!$I$29)*(1+(Henkilöstömenot!$I$28/100)) -> 64513.5
A145: Erityisluokanopett., vammaisten opetus | B145: 18 | C145: - | D145: 3770 | E145: 3967 | F145: =D145*(12+Henkilöstömenot!$I$29)*(1+(Henkilöstömenot!$I$28/100)) -> 57963.75
A146: Erityisluokanopettaja | B146: 2887 | C146: 28 | D146: 3751 | E146: 3848 | F146: =D146*(12+Henkilöstömenot!$I$29)*(1+(Henkilöstömenot!$I$28/100)) -> 57671.625
A147: Erityisluokanopettaja/erityisopettaja | B147: 157 | C147: 2 | D147: 3528 | E147: 3756 | F147: =D147*(12+Henkilöstömenot!$I$29)*(1+(Henkilöstömenot!$I$28/100)) -> 54243
A148: Erityisnuorisotyöntekijä | B148: 87 | C148: 9 | D148: 2505 | E148: 2523 | F148: =D148*(12+Henkilöstömenot!$I$29)*(1+(Henkilöstömenot!$I$28/100)) -> 38514.375
A149: Erityisohjaaja | B149: 32 | C149: 10 | D149: 2131 | E149: 2131 | F149: =D149*(12+Henkilöstömenot!$I$29)*(1+(Henkilöstömenot!$I$28/100)) -> 32764.125
A150: Erityisopettaja | B150: 21 | C150: - | D150: 3803 | E150: 3826 | F150: =D150*(12+Henkilöstömenot!$I$29)*(1+(Henkilöstömenot!$I$28/100)) -> 58471.125
A151: Erityisopettaja, muu kuin peruskoulussa | B151: 242 | C151: 8 | D151: 3734 | E151: 3764 | F151: =D151*(12+Henkilöstömenot!$I$29)*(1+(Henkilöstömenot!$I$28/100)) -> 57410.25
A152: Erityisopettaja, peruskoulussa | B152: 1901 | C152: 91 | D152: 3643 | E152: 3703 | F152: =D152*(12+Henkilöstömenot!$I$29)*(1+(Henkilöstömenot!$I$28/100)) -> 56011.125
A153: Erityisryhmien liikunnanohjaaja | B153: 17 | C153: 3 | D153: 2423 | E153: 2423 | F153: =D153*(12+Henkilöstömenot!$I$29)*(1+(Henkilöstömenot!$I$28/100)) -> 37253.625
A154: Erityissosiaaliohjaaja | B154: 41 | C154: 1 | D154: 3198 | E154: 3198 | F154: =D154*(12+Henkilöstömenot!$I$29)*(1+(Henkilöstömenot!$I$28/100)) -> 49169.25
A155: Erityissosiaalityöntekijä | B155: 42 | C155: 6 | D155: 3388 | E155: 3402 | F155: =D155*(12+Henkilöstömenot!$I$29)*(1+(Henkilöstömenot!$I$28/100)) -> 52090.5
A156: Erityissuunnittelija | B156: 112 | C156: 9 | D156: 3947 | E156: 3947 | F156: =D156*(12+Henkilöstömenot!$I$29)*(1+(Henkilöstömenot!$I$28/100)) -> 60685.125
A157: Esikoulunopettaja | B157: 67 | C157: 19 | D157: 2825 | E157: 2831 | F157: =D157*(12+Henkilöstömenot!$I$29)*(1+(Henkilöstömenot!$I$28/100)) -> 43434.375
A158: Esiluokan opettaja | B158: 143 | C158: 19 | D158: 3026 | E158: 3053 | F158: =D158*(12+Henkilöstömenot!$I$29)*(1+(Henkilöstömenot!$I$28/100)) -> 46524.75
A159: Esiluokanopettaja | B159: 24 | C159: 5 | D159: 2726 | E159: 2779 | F159: =D159*(12+Henkilöstömenot!$I$29)*(1+(Henkilöstömenot!$I$28/100)) -> 41912.25
A160: Esimies | B160: 37 | C160: 1 | D160: 3274 | E160: 3332 | F160: =D160*(12+Henkilöstömenot!$I$29)*(1+(Henkilöstömenot!$I$28/100)) -> 50337.75
A161: Esiopettaja | B161: 15 | C161: 11 | D161: 2842 | E161: 2900 | F161: =D161*(12+Henkilöstömenot!$I$29)*(1+(Henkilöstömenot!$I$28/100)) -> 43695.75
A162: Etsivä nuorisotyöntekijä | B162: 145 | C162: 9 | D162: 2367 | E162: 2368 | F162: =D162*(12+Henkilöstömenot!$I$29)*(1+(Henkilöstömenot!$I$28/100)) -> 36392.625
A163: Etuuskäsittelijä | B163: 192 | C163: 18 | D163: 2457 | E163: 2457 | F163: =D163*(12+Henkilöstömenot!$I$29)*(1+(Henkilöstömenot!$I$28/100)) -> 37776.375
A164: Farmanomi | B164: 25 | C164: 3 | D164: 2218 | E164: 2218 | F164: =D164*(12+Henkilöstömenot!$I$29)*(1+(Henkilöstömenot!$I$28/100)) -> 34101.75
A165: Farmaseutti | B165: 414 | C165: 66 | D165: 2840 | E165: 2902 | F165: =D165*(12+Henkilöstömenot!$I$29)*(1+(Henkilöstömenot!$I$28/100)) -> 43665
A166: Fysioterapeutti | B166: 2667 | C166: 463 | D166: 2602 | E166: 2606 | F166: =D166*(12+Henkilöstömenot!$I$29)*(1+(Henkilöstömenot!$I$28/100)) -> 40005.75
A167: Fyysikko | B167: 48 | C167: 14 | D167: 4776 | E167: 4932 | F167: =D167*(12+Henkilöstömenot!$I$29)*(1+(Henkilöstömenot!$I$28/100)) -> 73431
A168: Geronomi | B168: 32 | C168: 6 | D168: 2698 | E168: 2727 | F168: =D168*(12+Henkilöstömenot!$I$29)*(1+(Henkilöstömenot!$I$28/100)) -> 41481.75
A169: Graafikko | B169: 14 | C169: 3 | D169: 2597 | E169: 2597 | F169: =D169*(12+Henkilöstömenot!$I$29)*(1+(Henkilöstömenot!$I$28/100)) -> 39928.875
A170: Graafinen suunnittelija | B170: 31 | C170: 8 | D170: 2822 | E170: 2822 | F170: =D170*(12+Henkilöstömenot!$I$29)*(1+(Henkilöstömenot!$I$28/100)) -> 43388.25
A171: HR-asiantuntija | B171: 28 | C171: 1 | D171: 3496 | E171: 3532 | F171: =D171*(12+Henkilöstömenot!$I$29)*(1+(Henkilöstömenot!$I$28/100)) -> 53751
A172: HR-sihteeri | B172: 20 | C172: 3 | D172: 2652 | E172: 2652 | F172: =D172*(12+Henkilöstömenot!$I$29)*(1+(Henkilöstömenot!$I$28/100)) -> 40774.5
A173: HR-suunnittelija | B173: 20 | C173: 2 | D173: 3408 | E173: 3414 | F173: =D173*(12+Henkilöstömenot!$I$29)*(1+(Henkilöstömenot!$I$28/100)) -> 52398
A174: Hallimestari | B174: 27 | C174: 1 | D174: 2745 | E174: 2838 | F174: =D174*(12+Henkilöstömenot!$I$29)*(1+(Henkilöstömenot!$I$28/100)) -> 42204.375
A175: Hallinnollinen päiväkodin johtaja | B175: 38 | C175: 1 | D175: 3450 | E175: 3510 | F175: =D175*(12+Henkilöstömenot!$I$29)*(1+(Henkilöstömenot!$I$28/100)) -> 53043.75
A176: Hallinnollinen sihteeri | B176: 15 | C176: - | D176: 2737 | E176: 2737 | F176: =D176*(12+Henkilöstömenot!$I$29)*(1+(Henkilöstömenot!$I$28/100)) -> 42081.375
A177: Hallinnon sihteeri | B177: 38 | C177: 7 | D177: 2570 | E177: 2570 | F177: =D177*(12+Henkilöstömenot!$I$29)*(1+(Henkilöstömenot!$I$28/100)) -> 39513.75
A178: Hallinto- ja talousjohtaja | B178: 17 | C178: - | D178: 5527 | E178: 5527 | F178: =D178*(12+Henkilöstömenot!$I$29)*(1+(Henkilöstömenot!$I$28/100)) -> 84977.625
A179: Hallinto- ja talouspäällikkö | B179: 19 | C179: 1 | D179: 4222 | E179: 4254 | F179: =D179*(12+Henkilöstömenot!$I$29)*(1+(Henkilöstömenot!$I$28/100)) -> 64913.25
A180: Hallintoassistentti | B180: 20 | C180: - | D180: 2543 | E180: 2543 | F180: =D180*(12+Henkilöstömenot!$I$29)*(1+(Henkilöstömenot!$I$28/100)) -> 39098.625
A181: Hallintojohtaja | B181: 173 | C181: 4 | D181: 5767 | E181: 5773 | F181: =D181*(12+Henkilöstömenot!$I$29)*(1+(Henkilöstömenot!$I$28/100)) -> 88667.625
A182: Hallintolakimies | B182: 12 | C182: - | D182: 5394 | E182: 5394 | F182: =D182*(12+Henkilöstömenot!$I$29)*(1+(Henkilöstömenot!$I$28/100)) -> 82932.75
A183: Hallintopalvelusihteeri | B183: 30 | C183: 2 | D183: 2553 | E183: 2557 | F183: =D183*(12+Henkilöstömenot!$I$29)*(1+(Henkilöstömenot!$I$28/100)) -> 39252.375
A184: Hallintopäällikkö | B184: 123 | C184: 8 | D184: 4809 | E184: 4825 | F184: =D184*(12+Henkilöstömenot!$I$29)*(1+(Henkilöstömenot!$I$28/100)) -> 73938.375
A185: Hallintosihteeri | B185: 490 | C185: 25 | D185: 2830 | E185: 2835 | F185: =D185*(12+Henkilöstömenot!$I$29)*(1+(Henkilöstömenot!$I$28/100)) -> 43511.25
A186: Hallintoylihoitaja | B186: 18 | C186: 1 | D186: 6490 | E186: 6490 | F186: =D186*(12+Henkilöstömenot!$I$29)*(1+(Henkilöstömenot!$I$28/100)) -> 99783.75
A187: Hallintoylilääkäri | B187: 13 | C187: 2 | D187: 8490 | E187: 8993 | F187: =D187*(12+Henkilöstömenot!$I$29)*(1+(Henkilöstömenot!$I$28/100)) -> 130533.75
A188: Hammashoitaja | B188: 2612 | C188: 447 | D188: 2299 | E188: 2339 | F188: =D188*(12+Henkilöstömenot!$I$29)*(1+(Henkilöstömenot!$I$28/100)) -> 35347.125
A189: Hammashuollon vastaanottoavustaja | B189: 15 | C189: 2 | D189: 2223 | E189: 2223 | F189: =D189*(12+Henkilöstömenot!$I$29)*(1+(Henkilöstömenot!$I$28/100)) -> 34178.625
A190: Hammaslääkäri | B190: 80 | C190: 41 | D190: 5722 | E190: 5976 | F190: =D190*(12+Henkilöstömenot!$I$29)*(1+(Henkilöstömenot!$I$28/100)) -> 87975.75
A191: Hankejohtaja | B191: 19 | C191: 1 | D191: 6208 | E191: 6208 | F191: =D191*(12+Henkilöstömenot!$I$29)*(1+(Henkilöstömenot!$I$28/100)) -> 95448
A192: Hankekoordinaattori | B192: 74 | C192: 18 | D192: 3144 | E192: 3144 | F192: =D192*(12+Henkilöstömenot!$I$29)*(1+(Henkilöstömenot!$I$28/100)) -> 48339
A193: Hankepäällikkö | B193: 59 | C193: 5 | D193: 4336 | E193: 4336 | F193: =D193*(12+Henkilöstömenot!$I$29)*(1+(Henkilöstömenot!$I$28/100)) -> 66666
A194: Hankesuunnittelija | B194: 31 | C194: 2 | D194: 3331 | E194: 3331 | F194: =D194*(12+Henkilöstömenot!$I$29)*(1+(Henkilöstömenot!$I$28/100)) -> 51214.125
A195: Hanketyöntekijä | B195: 80 | C195: 16 | D195: 2559 | E195: 2559 | F195: =D195*(12+Henkilöstömenot!$I$29)*(1+(Henkilöstömenot!$I$28/100)) -> 39344.625
A196: Hankinta-asiantuntija | B196: 139 | C196: 6 | D196: 3083 | E196: 3096 | F196: =D196*(12+Henkilöstömenot!$I$29)*(1+(Henkilöstömenot!$I$28/100)) -> 47401.125
A197: Hankintalakimies | B197: 13 | C197: 1 | D197: 4575 | E197: 4575 | F197: =D197*(12+Henkilöstömenot!$I$29)*(1+(Henkilöstömenot!$I$28/100)) -> 70340.625
A198: Hankintapäällikkö | B198: 49 | C198: 2 | D198: 4584 | E198: 4584 | F198: =D198*(12+Henkilöstömenot!$I$29)*(1+(Henkilöstömenot!$I$28/100)) -> 70479
A199: Hankintasihteeri | B199: 69 | C199: 5 | D199: 2528 | E199: 2528 | F199: =D199*(12+Henkilöstömenot!$I$29)*(1+(Henkilöstömenot!$I$28/100)) -> 38868
A200: Hankintasuunnittelija | B200: 18 | C200: - | D200: 3178 | E200: 3178 | F200: =D200*(12+Henkilöstömenot!$I$29)*(1+(Henkilöstömenot!$I$28/100)) -> 48861.75
... 1495 more rows

Sheet Linkkejä tietolähteisiin
A1: Tietolähteitä kustannusvaikutusten arvioinnin tueksi
A3: Sosiaali- ja terveys
B4: Terveyden ja hyvinvoinnin laitos, THL
C5: Kapiainen, Väisänen, Haula (2014): Sosiaali- ja terveydenhuollon yksikkökustannukset Suomessa vuonna 2011, Raportti 3/2014 (linkki)
B6: Tilasto- ja indikaattoripankki SOTKAnet
C7: www.sotkanet.fi
B8: Kuntien sosiaali- ja terveydenhuollon järjestelmä (järjestäjien määrätietoja ym.)
C9: http://www.kunnat.net/fi/asiantuntijapalvelut/soster/hallinto-jarjestaminen-tuottaminen/hallinto/sotehallinto2014/Sivut/default.aspx
B10: Sote-kustannusvertailut: Ikäryhmiin suhteutettua kustannustietoa terveydenhuollosta ja eräistä sosiaalihuollon palveluista
C11: https://www.kuntaliitto.fi/asiantuntijapalvelut/sosiaali-ja-terveysasiat/tilastot-ja-erillisselvitykset
B12: Kuusikkokuntien kustannusvertailut: kustannus- ja suoritetietoa kuudesta suurimmasta kaupungista
C13: www.kuusikkokunnat.fi
C14: Lasten päivähoito
C15: Lastensuojelu
C16: Aikuissosiaalityö ja toimeentulotuki
C17: Sosiaalityö
C18: Päihdehuolto
C19: Vammaispalvelulain mukaiset palvelut
C20: Kehitysvammahuolto
C21: Vanhuspalvelut
A23: Opetus- ja kulttuuri:
B24: Opetushallitus, opetus- ja kulttuuritoimen rahoitusjärjestelmä
C25: http://www.oph.fi/rahoitus/valtionosuudet/raportit
C26: http://vos.uta.fi/rap/
B27: Kouluikkuna - perusopetuksen ja lukiokoulutuksen vertailutietokanta
C28: http://www.kunnat.net/fi/asiantuntijapalvelut/opeku/opetus/perusopetus/vertailutieto/Sivut/default.aspx
A48: Muut
A50: www.kt.fi
A51: > Palkat. ammatit, tutkinnot
A52: > Tilastot ja selvitykset
A54: Kuntataloustilasto:
A55: http://www.stat.fi/til/kta/index.html
